[Event "1000GM Spring Break Schev-B 2024"]
[Site "San Jose"]
[Date "2024.03.30"]
[Round "1.1"]
[White "Karunakaran, Kapilan"]
[Black "Dominguez Aguilar, Guillermo"]
[Result "1-0"]
[ECO "A61"]
[WhiteElo "1965"]
[BlackElo "2284"]
[Annotator "RC"]
[PlyCount "55"]
[EventDate "2024.03.28"]
[EventType "schev"]
[EventCountry "USA"]
[SourceTitle "playchess.com"]
[Source "ChessBase"]
[SourceQuality "1"]
[TimeControl "5400+30"]

1. d4 {[%emt 0:00:03]} Nf6 {[%emt 0:01:35]} 2. c4 {[%emt 0:00:28]} c5 {[%emt 0:00:21]} 3. d5 {[%emt 0:00:08]} e6 {[%emt 0:00:09]} 4. Nc3 {[%emt 0:00:08]} exd5 {[%emt 0:00:09]} 5. cxd5 {[%emt 0:00:07]} d6 {[%emt 0:00:08]} 6. Bf4 {[%emt 0:01:13]} a6 {[%emt 0:01:29]} 7. a4 {[%emt 0:00:18]} g6 {[%emt 0:02:38]} 8. h3 {[%emt 0:01:07]} Bg7 {[%emt 0:00:10]} 9. Nf3 {[%emt 0:01:56]} O-O {[%emt 0:00:18]} 10. e3 {[%emt 0:00:06]} Re8 {[%emt 0:01:20]} 11. Nd2 {[%emt 0:00:12]} Nh5 {[%emt 0:05:45]} 12. Bh2 {[%emt 0:01:03]} Qh4 {[%emt 0:25:02]} 13. Nc4 {[%emt 0:15:44]} Nd7 {[%emt 0:00:15]} 14. Bxd6 {[%emt 0:09:59]} f5 {[%emt 0:04:17]} 15. Qf3 {[%emt 0:10:26]} f4 {[%emt 0:00:56]} 16. e4 {[%emt 0:07:28]} Ndf6 {[%emt 0:04:17]} 17. e5 {[%emt 0:12:53]} Bf5 {[%emt 0:05:59]} 18. O-O-O {[%emt 0:04:34]} b5 {[%emt 0:00:54]} 19. exf6 {[%emt 0:03:45]} Qxf6 {[%emt 0:01:10]} 20. Be5 {[%emt 0:03:19]} Rxe5 {[%emt 0:00:37]} 21. Nxe5 {[%emt 0:00:22]} b4 {[%emt 0:00:31]} 22. Bc4 {[%emt 0:09:00]} Qd6 {[%emt 0:00:23]} 23. Nc6 {[%emt 0:05:15]} bxc3 {[%emt 0:00:14]} 24. b3 {[%emt 0:03:07]} c2 {[%emt 0:08:43]} 25. Rde1 {[%emt 0:00:34]} Rc8 {[%emt 0:01:29]} 26. Ne7+ {[%emt 0:01:26]} Kf8 {[%emt 0:01:04]} 27. Nxf5 {[%emt 0:02:06]} gxf5 {[%emt 0:00:09]} 28. Re6 {[%emt 0:00:17]} 1-0

[Event "1000GM Spring Break Schev-B 2024"]
[Site "San Jose"]
[Date "2024.03.30"]
[Round "1.2"]
[White "Pulijala, Akshaj"]
[Black "Varela Velazquez, Carlos Francisco"]
[Result "0-1"]
[ECO "D00"]
[WhiteElo "1815"]
[BlackElo "2113"]
[Annotator "RC"]
[PlyCount "89"]
[EventDate "2024.03.28"]
[EventType "schev"]
[EventCountry "USA"]
[SourceTitle "playchess.com"]
[Source "ChessBase"]
[SourceQuality "1"]
[TimeControl "5400+30"]

1. d4 {[%emt 0:00:00]} Nf6 {[%emt 0:01:00]} 2. Nc3 d5 {[%emt 0:00:43]} 3. Bf4 {[%emt 0:00:40]} e6 {[%emt 0:00:30]} 4. e3 {[%emt 0:00:30]} Bb4 {[%emt 0:00:30]} 5. Bd3 {[%emt 0:00:30]} c5 {[%emt 0:00:30]} 6. dxc5 {[%emt 0:00:30]} Nbd7 {[%emt 0:00:30]} 7. Nf3 {[%emt 0:00:30]} O-O {[%emt 0:00:30]} 8. O-O {[%emt 0:00:30]} Nxc5 {[%emt 0:00:30]} 9. Be2 {[%emt 0:00:30]} Bd7 {[%emt 0:00:30]} 10. Qd4 {[%emt 0:00:30]} Qa5 {[%emt 0:00:30]} 11. Nb1 {[%emt 0:00:30]} Nce4 {[%emt 0:00:30]} 12. Ne5 {[%emt 0:42:51]} Bb5 {[%emt 1:01:11]} 13. Bxb5 {[%emt 0:00:30]} Qxb5 {[%emt 0:00:30]} 14. a4 {[%emt 0:00:30]} Qb6 {[%emt 0:00:30]} 15. Qxb6 {[%emt 0:18:45]} axb6 {[%emt 0:00:00]} 16. f3 {[%emt 0:00:30]} Nc5 {[%emt 0:00:20]} 17. b3 {[%emt 0:00:30]} Rfc8 {[%emt 0:00:30]} 18. Rd1 {[%emt 0:31:14]} Nh5 {[%emt 0:19:05]} 19. Rd4 {[%emt 0:00:00]} Na6 {[%emt 0:01:15]} 20. Nd3 {[%emt 0:00:00]} Be7 {[%emt 0:02:01]} 21. c3 {[%emt 0:00:00]} Nc5 {[%emt 0:00:30]} 22. Nd2 {[%emt 0:00:00]} Nd7 {[%emt 0:00:30]} 23. Rc1 {[%emt 0:00:00]} Bf6 {[%emt 0:00:30]} 24. Bd6 {[%emt 0:00:00]} Bxd4 {[%emt 0:00:30]} 25. exd4 {[%emt 0:00:00]} Nhf6 {[%emt 0:00:30]} 26. g4 {[%emt 0:00:00]} Ne8 {[%emt 0:00:30]} 27. Bb4 {[%emt 0:00:00]} Nc7 {[%emt 0:00:30]} 28. f4 {[%emt 0:00:00]} Nb8 {[%emt 0:00:30]} 29. Ne5 {[%emt 0:00:00]} f6 {[%emt 0:00:30]} 30. Nd3 {[%emt 0:00:00]} Kf7 {[%emt 0:00:30]} 31. Kf2 {[%emt 0:00:00]} Nc6 {[%emt 0:00:30]} 32. Ba3 {[%emt 0:00:00]} b5 {[%emt 0:00:30]} 33. Nb2 {[%emt 0:07:30]} b6 {[%emt 0:07:37]} 34. Nb1 {[%emt 0:00:00]} Ra6 {[%emt 0:00:57]} 35. Ke3 {[%emt 0:00:00]} Ke8 {[%emt 0:00:30]} 36. Kd3 {[%emt 0:00:00]} Kd7 {[%emt 0:00:30]} 37. g5 {[%emt 0:00:00]} f5 {[%emt 0:00:30]} 38. h4 {[%emt 0:00:00]} Rca8 {[%emt 0:00:30]} 39. Bb4 {[%emt 0:00:00]} bxa4 {[%emt 0:00:30]} 40. bxa4 {[%emt 0:00:00]} b5 {[%emt 0:00:30]} 41. axb5 {[%emt 0:00:15]} Nxb5 {[%emt 0:00:30]} 42. Bc5 {[%emt 0:00:30]} Ra2 {[%emt 0:00:30]} 43. Kc2 {[%emt 0:00:30]} Rb8 {[%emt 0:00:30]} 44. Nd2 {[%emt 0:00:30]} Nbxd4+ {[%emt 0:00:30]} 45. cxd4 {[%emt 0:00:30]} 0-1

[Event "1000GM Spring Break Schev-B 2024"]
[Site "San Jose"]
[Date "2024.03.30"]
[Round "1.4"]
[White "Solis Castro, Angel Alejan"]
[Black "Xia, Joshua"]
[Result "0-1"]
[ECO "D87"]
[WhiteElo "2071"]
[BlackElo "1938"]
[Annotator "RC"]
[PlyCount "103"]
[EventDate "2024.03.28"]
[EventType "schev"]
[EventCountry "USA"]
[SourceTitle "playchess.com"]
[Source "ChessBase"]
[SourceQuality "1"]
[TimeControl "5400+30"]

1. d4 {[%emt 0:01:38]} Nf6 {[%emt 0:00:07]} 2. c4 {[%emt 0:00:19]} g6 {[%emt 0:00:06]} 3. Nc3 {[%emt 0:00:28]} d5 {[%emt 0:00:05]} 4. cxd5 {[%emt 0:01:11]} Nxd5 {[%emt 0:00:12]} 5. e4 {[%emt 0:00:03]} Nxc3 {[%emt 0:00:08]} 6. bxc3 {[%emt 0:00:11]} Bg7 {[%emt 0:00:12]} 7. Bc4 {[%emt 0:00:31]} c5 {[%emt 0:00:09]} 8. Ne2 {[%emt 0:00:22]} O-O {[%emt 0:00:34]} 9. O-O {[%emt 0:00:38]} Nc6 {[%emt 0:01:24]} 10. Be3 {[%emt 0:00:25]} b6 {[%emt 0:00:29]} 11. dxc5 {[%emt 0:02:32]} Ne5 {[%emt 0:02:32]} 12. Bb3 {[%emt 0:01:37]} Ba6 {[%emt 0:01:22]} 13. Re1 {[%emt 0:03:01]} Nd3 {[%emt 0:00:45]} 14. cxb6 {[%emt 0:06:13]} Nxe1 {[%emt 0:00:46]} 15. Qxe1 {[%emt 0:00:10]} axb6 {[%emt 0:00:41]} 16. Nf4 {[%emt 0:02:21]} e6 {[%emt 0:01:17]} 17. Rc1 {[%emt 0:01:58]} Qc7 {[%emt 0:04:12]} 18. c4 {[%emt 0:01:42]} Rac8 {[%emt 0:02:38]} 19. Qb4 {[%emt 0:03:40]} b5 {[%emt 0:04:20]} 20. c5 {[%emt 0:00:54]} Qc6 {[%emt 0:01:18]} 21. Ne2 {[%emt 0:02:04]} Rfd8 {[%emt 0:03:46]} 22. Bc2 {[%emt 0:08:44]} Bf8 {[%emt 0:01:49]} 23. Bb3 {[%emt 0:02:56]} Rd3 {[%emt 0:16:02]} 24. Bg5 {[%emt 0:20:50]} Bxc5 {[%emt 0:06:06]} 25. Qa5 {[%emt 0:05:10]} Bb7 {[%emt 0:03:10]} 26. Kf1 {[%emt 0:00:54]} Qxe4 {[%emt 0:03:07]} 27. f3 {[%emt 0:01:22]} Qb4 {[%emt 0:14:46]} 28. Qxb4 {[%emt 0:00:35]} Bxb4 {[%emt 0:02:52]} 29. Rxc8+ {[%emt 0:00:06]} Bxc8 {[%emt 0:00:03]} 30. Nc1 {[%emt 0:00:37]} Rd7 {[%emt 0:00:36]} 31. Ke2 {[%emt 0:00:12]} Ba6 {[%emt 0:00:45]} 32. Bc2 {[%emt 0:00:49]} Bd6 {[%emt 0:00:40]} 33. h3 {[%emt 0:00:50]} b4+ {[%emt 0:00:18]} 34. Bd3 {[%emt 0:00:12]} Bb7 {[%emt 0:00:37]} 35. Bd2 {[%emt 0:01:22]} Bf8 {[%emt 0:03:11]} 36. Bc4 {[%emt 0:01:21]} Rc7 {[%emt 0:00:25]} 37. Kd3 {[%emt 0:01:14]} Rc6 {[%emt 0:03:04]} 38. Bb5 {[%emt 0:00:46]} Rc5 {[%emt 0:02:00]} 39. Bc4 {[%emt 0:00:10]} Ra5 {[%emt 0:03:37]} 40. Kc2 {[%emt 0:00:26]} Ba6 {[%emt 0:05:14]} 41. Bxa6 {[%emt 0:01:10]} Rxa6 {[%emt 0:00:24]} 42. Kd3 {[%emt 0:00:04]} f5 {[%emt 0:01:13]} 43. Kc4 {[%emt 0:00:10]} e5 {[%emt 0:00:30]} 44. Kb3 {[%emt 0:00:22]} Ra3+ {[%emt 0:02:25]} 45. Kc4 {[%emt 0:00:04]} e4 {[%emt 0:00:58]} 46. fxe4 {[%emt 0:01:05]} fxe4 {[%emt 0:00:10]} 47. Bxb4 {[%emt 0:00:07]} Rg3 {[%emt 0:01:12]} 48. a4 {[%emt 0:01:08]} Rxg2 {[%emt 0:00:14]} 49. Bxf8 {[%emt 0:00:23]} Kxf8 {[%emt 0:00:34]} 50. Kd4 {[%emt 0:00:11]} Rg3 {[%emt 0:01:10]} 51. Kxe4 {[%emt 0:00:15]} Rxh3 {[%emt 0:00:18]} 52. Kd4 {[%emt 0:30:57]} 0-1

[Event "1000GM Spring Break Schev-B 2024"]
[Site "San Jose"]
[Date "2024.03.30"]
[Round "1.5"]
[White "Gongora Montes, Benjamin"]
[Black "Rajaram, Anika"]
[Result "1-0"]
[ECO "D03"]
[WhiteElo "2106"]
[BlackElo "1850"]
[Annotator "RC"]
[PlyCount "111"]
[EventDate "2024.03.28"]
[EventType "schev"]
[EventCountry "USA"]
[SourceTitle "playchess.com"]
[Source "ChessBase"]
[SourceQuality "1"]
[TimeControl "5400+30"]

1. d4 {[%emt 0:00:03]} d5 {[%emt 0:04:06]} 2. Nf3 {[%emt 0:00:12]} Nf6 {[%emt 0:00:06]} 3. Bg5 {[%emt 0:00:08]} e6 {[%emt 0:00:51]} 4. Nbd2 {[%emt 0:00:16]} Be7 {[%emt 0:00:47]} 5. e3 {[%emt 0:00:12]} O-O {[%emt 1:27:10]} 6. Bd3 {[%emt 0:00:09]} Nbd7 {[%emt 0:00:00]} 7. Ne5 {[%emt 0:00:27]} c5 {[%emt 0:00:00]} 8. c3 {[%emt 0:00:10]} Nxe5 {[%emt 0:00:00]} 9. dxe5 {[%emt 0:00:14]} Nd7 {[%emt 0:00:00]} 10. Bf4 {[%emt 0:00:13]} f6 {[%emt 0:00:00]} 11. Qh5 {[%emt 0:00:43]} f5 {[%emt 0:00:00]} 12. g4 {[%emt 0:00:36]} g6 {[%emt 0:00:00]} 13. Qh6 {[%emt 0:00:57]} Nb8 {[%emt 0:00:00]} 14. Rg1 {[%emt 0:01:05]} Rf7 {[%emt 0:00:00]} 15. O-O-O {[%emt 0:00:51]} Bf8 {[%emt 0:05:00]} 16. Qh3 Qa5 17. Nf3 Qxa2 18. gxf5 exf5 {[%emt 0:00:00]} 19. e6 {[%emt 0:02:11]} Bxe6 {[%emt 0:00:00]} 20. Ng5 {[%emt 0:10:52]} Qa1+ {[%emt 0:00:00]} 21. Bb1 {[%emt 0:07:13]} Qa6 {[%emt 0:00:00]} 22. Nxf7 {[%emt 0:01:14]} Bxf7 {[%emt 0:00:00]} 23. Bxf5 {[%emt 0:01:01]} Bg7 {[%emt 0:00:00]} 24. Bh6 {[%emt 0:01:56]} Nc6 {[%emt 0:00:00]} 25. Bxg7 {[%emt 0:02:05]} Kxg7 {[%emt 0:00:07]} 26. Be6 {[%emt 0:03:09]} Qa1+ {[%emt 0:01:53]} 27. Kc2 {[%emt 0:01:21]} Qa4+ {[%emt 0:00:15]} 28. Kd2 {[%emt 0:01:15]} Ne5 {[%emt 0:01:40]} 29. Bxf7 {[%emt 0:01:22]} Nxf7 {[%emt 0:01:08]} 30. Qg4 {[%emt 0:11:59]} Qb5 {[%emt 0:00:39]} 31. Kc2 {[%emt 0:01:46]} Rd8 {[%emt 0:01:36]} 32. Rd2 {[%emt 0:01:06]} Qb6 {[%emt 0:00:35]} 33. Qf4 {[%emt 0:00:59]} Qc6 {[%emt 0:00:27]} 34. h4 {[%emt 0:02:07]} Re8 {[%emt 0:00:28]} 35. Rgd1 {[%emt 0:02:11]} Re4 {[%emt 0:00:22]} 36. Qg3 {[%emt 0:00:34]} Qa4+ {[%emt 0:00:16]} 37. Kb1 {[%emt 0:00:17]} Rxh4 {[%emt 0:00:54]} 38. Rxd5 {[%emt 0:00:21]} Qe4+ {[%emt 0:00:27]} 39. Kc1 {[%emt 0:00:13]} Rh1 {[%emt 0:01:13]} 40. Rxh1 Qxh1+ {[%emt 0:00:00]} 41. Rd1 {[%emt 0:00:44]} Qc6 {[%emt 0:00:23]} 42. Qf4 {[%emt 0:00:46]} b5 {[%emt 0:00:30]} 43. Kb1 {[%emt 0:00:30]} a5 {[%emt 0:00:24]} 44. c4 {[%emt 0:01:35]} b4 {[%emt 0:00:25]} 45. Rd5 {[%emt 0:02:29]} b3 {[%emt 0:00:30]} 46. Qe4 {[%emt 0:00:41]} Qa4 {[%emt 0:00:34]} 47. Rxc5 {[%emt 0:00:18]} Qb4 {[%emt 0:00:30]} 48. Qd4+ {[%emt 0:01:51]} Kh6 {[%emt 0:01:14]} 49. Rd5 {[%emt 0:02:15]} Qe1+ {[%emt 0:00:00]} 50. Qd1 {[%emt 0:00:12]} Qb4 {[%emt 0:00:07]} 51. Rd4 {[%emt 0:01:23]} a4 {[%emt 0:00:37]} 52. e4 {[%emt 0:01:10]} a3 {[%emt 0:00:31]} 53. bxa3 {[%emt 0:00:18]} Qxa3 {[%emt 0:00:10]} 54. Qc1+ {[%emt 0:00:08]} Qxc1+ {[%emt 0:00:13]} 55. Kxc1 {[%emt 0:00:14]} Ne5 {[%emt 0:00:08]} 56. f4 {[%emt 0:00:46]} 1-0

[Event "1000GM Spring Break Schev-B 2024"]
[Site "San Jose"]
[Date "2024.03.31"]
[Round "2.1"]
[White "Varela Velazquez, Carlos Francisco"]
[Black "Karunakaran, Kapilan"]
[Result "1/2-1/2"]
[ECO "D34"]
[WhiteElo "2113"]
[BlackElo "1965"]
[Annotator "RC"]
[PlyCount "67"]
[EventDate "2024.03.28"]
[EventType "schev"]
[EventCountry "USA"]
[SourceTitle "playchess.com"]
[Source "ChessBase"]
[SourceQuality "1"]
[TimeControl "5400+30"]

1. Nf3 {[%emt 0:01:18]} Nf6 {[%emt 0:00:11]} 2. b3 {[%emt 0:01:18]} d5 {[%emt 0:00:43]} 3. Bb2 {[%emt 0:00:14]} Bf5 {[%emt 0:04:11]} 4. c4 {[%emt 0:00:07]} e6 {[%emt 0:00:34]} 5. g3 {[%emt 0:00:02]} h6 {[%emt 0:00:09]} 6. Bg2 {[%emt 0:00:04]} c5 {[%emt 0:00:58]} 7. cxd5 {[%emt 0:02:17]} exd5 {[%emt 0:03:15]} 8. O-O {[%emt 0:03:02]} Be7 {[%emt 0:01:28]} 9. d4 {[%emt 0:00:13]} Nc6 {[%emt 0:08:49]} 10. Nc3 {[%emt 0:02:49]} O-O {[%emt 0:02:05]} 11. dxc5 {[%emt 0:06:14]} Bxc5 {[%emt 0:02:49]} 12. Rc1 {[%emt 0:00:14]} Rc8 {[%emt 0:15:35]} 13. Nxd5 {[%emt 0:19:19]} Bxf2+ {[%emt 0:01:43]} 14. Rxf2 {[%emt 0:00:19]} Nxd5 {[%emt 0:00:40]} 15. Ne5 {[%emt 0:28:03]} Nxe5 {[%emt 0:22:01]} 16. Rxc8 {[%emt 0:06:43]} Bxc8 {[%emt 0:06:50]} 17. Qxd5 {[%emt 0:01:03]} Nc6 {[%emt 0:05:31]} 18. Ba3 {[%emt 0:07:33]} Be6 {[%emt 0:00:38]} 19. Qxe6 {[%emt 0:04:57]} fxe6 {[%emt 0:01:35]} 20. Rxf8+ {[%emt 0:00:05]} Qxf8 {[%emt 0:00:12]} 21. Bxf8 {[%emt 0:00:04]} Kxf8 {[%emt 0:00:10]} 22. Bxc6 {[%emt 0:00:02]} bxc6 {[%emt 0:00:10]} 23. Kf2 {[%emt 0:00:32]} c5 {[%emt 0:03:20]} 24. Ke3 {[%emt 0:01:26]} Ke7 {[%emt 0:04:56]} 25. Kd3 {[%emt 0:00:09]} Kd6 {[%emt 0:01:39]} 26. Kc4 {[%emt 0:00:05]} Kc6 {[%emt 0:03:15]} 27. b4 {[%emt 0:01:38]} cxb4 {[%emt 0:00:07]} 28. Kxb4 {[%emt 0:00:06]} Kb6 {[%emt 0:01:18]} 29. g4 {[%emt 0:01:52]} e5 {[%emt 0:02:47]} 30. h4 {[%emt 0:05:11]} g6 {[%emt 0:01:42]} 31. h5 {[%emt 0:01:18]} g5 {[%emt 0:00:11]} 32. Kc4 {[%emt 0:00:19]} Kc6 {[%emt 0:00:07]} 33. a3 {[%emt 0:01:31]} a6 {[%emt 0:00:16]} 34. e3 {[%emt 0:00:22]} 1/2-1/2

[Event "1000GM Spring Break Schev-B 2024"]
[Site "San Jose"]
[Date "2024.03.31"]
[Round "2.2"]
[White "Rodi, Luis Ernesto"]
[Black "Pulijala, Akshaj"]
[Result "1-0"]
[ECO "B33"]
[WhiteElo "2193"]
[BlackElo "1815"]
[Annotator "RC"]
[PlyCount "121"]
[EventDate "2024.03.28"]
[EventType "schev"]
[EventCountry "USA"]
[SourceTitle "playchess.com"]
[Source "ChessBase"]
[SourceQuality "1"]
[TimeControl "5400+30"]

1. e4 {[%emt 1:31:00]} c5 {[%emt 1:31:00]} 2. Nf3 Nc6 3. d4 cxd4 4. Nxd4 Nf6 5. Nc3 e5 6. Ndb5 d6 7. Nd5 Nxd5 8. exd5 Nb8 9. a4 Be7 10. Be2 O-O {[%emt 0:00:00]} 11. O-O {[%emt 0:00:00]} a6 {[%emt 0:00:00]} 12. Na3 {[%emt 0:00:00]} Bf5 {[%emt 0:00:00]} 13. Nc4 {[%emt 0:00:00]} Nd7 14. a5 Rc8 {[%emt 0:00:00]} 15. c3 {[%emt 0:00:00]} Nc5 {[%emt 0:00:00]} 16. Nb6 {[%emt 0:00:00]} Rc7 {[%emt 0:00:00]} 17. f3 {[%emt 0:00:00]} Nd7 {[%emt 0:00:00]} 18. Be3 {[%emt 0:00:00]} Bg5 {[%emt 0:00:00]} 19. Bf2 {[%emt 0:00:00]} Qf6 {[%emt 0:00:00]} 20. Nxd7 {[%emt 0:00:00]} Rxd7 {[%emt 0:00:00]} 21. Bd3 {[%emt 0:00:00]} Re8 {[%emt 0:00:00]} 22. Qc2 {[%emt 0:00:00]} Bxd3 {[%emt 0:00:00]} 23. Qxd3 {[%emt 0:00:00]} Qe7 {[%emt 0:00:00]} 24. Rfe1 {[%emt 0:00:00]} g6 {[%emt 0:00:00]} 25. c4 {[%emt 0:00:00]} f5 {[%emt 0:00:00]} 26. b4 {[%emt 0:00:00]} Qf7 {[%emt 0:00:00]} 27. Rad1 {[%emt 0:00:00]} Rde7 {[%emt 0:00:00]} 28. c5 {[%emt 0:00:00]} e4 {[%emt 0:00:00]} 29. fxe4 {[%emt 0:00:00]} fxe4 {[%emt 0:00:00]} 30. Qe2 {[%emt 0:00:00]} Bf4 {[%emt 0:00:00]} 31. Rf1 {[%emt 0:00:00]} Qg7 {[%emt 0:00:00]} 32. Bd4 {[%emt 0:00:00]} Be5 {[%emt 0:00:00]} 33. Be3 {[%emt 0:00:00]} Rf7 {[%emt 0:00:00]} 34. Qc4 {[%emt 0:00:00]} Rxf1+ {[%emt 0:00:00]} 35. Rxf1 {[%emt 0:00:00]} Qc7 {[%emt 0:00:00]} 36. c6 {[%emt 0:00:00]} Kg7 {[%emt 0:00:00]} 37. g3 {[%emt 0:00:00]} bxc6 {[%emt 0:00:00]} 38. dxc6 {[%emt 0:00:00]} d5 {[%emt 0:00:00]} 39. Qxd5 {[%emt 0:00:00]} Bxg3 {[%emt 0:00:00]} 40. Qd7+ {[%emt 0:00:00]} Re7 {[%emt 0:00:00]} 41. Qh3 {[%emt 0:00:00]} Bxh2+ {[%emt 0:00:00]} 42. Qxh2 {[%emt 0:00:00]} Qxh2+ {[%emt 0:00:00]} 43. Kxh2 {[%emt 0:00:00]} Rc7 {[%emt 0:00:00]} 44. Rc1 {[%emt 0:00:00]} Kf6 {[%emt 0:00:00]} 45. Bb6 {[%emt 0:00:00]} Rc8 {[%emt 0:00:00]} 46. c7 {[%emt 0:00:00]} Ke5 {[%emt 0:00:00]} 47. b5 {[%emt 0:00:00]} e3 {[%emt 0:00:00]} 48. Bxe3 {[%emt 0:00:00]} axb5 {[%emt 0:00:00]} 49. a6 {[%emt 0:00:00]} Ke4 {[%emt 0:00:00]} 50. Ba7 {[%emt 0:00:00]} b4 {[%emt 0:00:00]} 51. Bb8 {[%emt 0:00:00]} b3 {[%emt 0:00:00]} 52. a7 {[%emt 0:00:00]} b2 {[%emt 0:00:00]} 53. Rb1 {[%emt 0:00:00]} Kf4 {[%emt 0:00:00]} 54. Rxb2 {[%emt 0:00:00]} Kf5 {[%emt 0:00:00]} 55. a8=Q {[%emt 0:00:00]} Kf6 {[%emt 0:00:00]} 56. Qa6+ {[%emt 0:00:00]} Kg7 {[%emt 0:00:00]} 57. Qxc8 {[%emt 0:00:00]} Kh6 {[%emt 0:00:00]} 58. Qf8+ {[%emt 0:00:00]} Kh5 {[%emt 0:00:00]} 59. c8=Q {[%emt 0:00:00]} Kg5 {[%emt 0:00:00]} 60. Rb5+ {[%emt 0:00:00]} Kh4 {[%emt 0:00:00]} 61. Qh3# {[%emt 0:00:00]} 1-0

[Event "1000GM Spring Break Schev-B 2024"]
[Site "San Jose"]
[Date "2024.03.31"]
[Round "2.4"]
[White "Xia, Joshua"]
[Black "Gongora Montes, Benjamin"]
[Result "1/2-1/2"]
[ECO "C04"]
[WhiteElo "1938"]
[BlackElo "2106"]
[Annotator "RC"]
[PlyCount "42"]
[EventDate "2024.03.28"]
[EventType "schev"]
[EventCountry "USA"]
[SourceTitle "playchess.com"]
[Source "ChessBase"]
[SourceQuality "1"]
[TimeControl "5400+30"]

1. e4 {[%emt 0:00:02]} e6 {[%emt 0:01:22]} 2. d4 {[%emt 0:00:18]} d5 {[%emt 0:00:08]} 3. Nd2 {[%emt 0:00:06]} Nf6 {[%emt 0:00:22]} 4. e5 {[%emt 0:00:04]} Nfd7 {[%emt 0:00:06]} 5. Bd3 {[%emt 0:00:02]} Nc6 {[%emt 1:31:02]} 6. Ngf3 {[%emt 0:02:29]} Qe7 {[%emt 0:00:00]} 7. c3 {[%emt 0:01:45]} f6 {[%emt 0:00:00]} 8. exf6 {[%emt 0:07:00]} gxf6 {[%emt 0:00:00]} 9. Nh4 {[%emt 0:12:36]} Bg7 {[%emt 0:00:00]} 10. O-O {[%emt 0:03:14]} Qf7 {[%emt 0:00:00]} 11. Qc2 {[%emt 0:04:30]} Ne7 {[%emt 0:00:00]} 12. Ndf3 {[%emt 0:19:58]} e5 {[%emt 0:00:00]} 13. dxe5 {[%emt 0:00:39]} fxe5 {[%emt 0:00:00]} 14. Ng5 {[%emt 0:00:39]} Qf6 {[%emt 0:00:00]} 15. Qe2 {[%emt 0:02:14]} e4 {[%emt 0:00:00]} 16. Qh5+ {[%emt 0:04:48]} Ng6 {[%emt 0:00:00]} 17. Be2 {[%emt 0:02:29]} Ndf8 {[%emt 0:00:00]} 18. Be3 {[%emt 0:06:13]} Ne6 {[%emt 0:00:00]} 19. f3 {[%emt 0:13:03]} Nxg5 {[%emt 0:00:00]} 20. fxe4 {[%emt 0:02:21]} Nh3+ {[%emt 0:00:00]} 21. gxh3 {[%emt 0:03:25]} Qxh4 {[%emt 0:00:00]} 1/2-1/2

[Event "1000GM Spring Break Schev-B 2024"]
[Site "San Jose"]
[Date "2024.03.31"]
[Round "2.5"]
[White "Rajaram, Anika"]
[Black "Dominguez Aguilar, Guillermo"]
[Result "1/2-1/2"]
[ECO "A62"]
[WhiteElo "1850"]
[BlackElo "2284"]
[Annotator "RC"]
[PlyCount "103"]
[EventDate "2024.03.28"]
[EventType "schev"]
[EventCountry "USA"]
[SourceTitle "playchess.com"]
[Source "ChessBase"]
[SourceQuality "1"]
[TimeControl "5400+30"]

1. d4 {[%emt 0:06:22]} Nf6 {[%emt 0:02:23]} 2. c4 {[%emt 0:00:06]} g6 {[%emt 0:00:05]} 3. g3 {[%emt 0:00:11]} Bg7 {[%emt 0:00:09]} 4. Bg2 {[%emt 0:00:15]} c5 {[%emt 0:00:10]} 5. d5 {[%emt 0:00:06]} d6 {[%emt 1:30:13]} 6. Nc3 O-O 7. Nf3 e6 8. O-O exd5 9. cxd5 a6 10. a4 Re8 11. Bf4 h6 12. Re1 g5 13. Bc1 Bf5 14. h4 g4 {[%emt 0:00:00]} 15. Nd2 {[%emt 1:31:00]} Nbd7 {[%emt 0:00:00]} 16. e4 {[%emt 0:00:00]} Bg6 {[%emt 0:00:00]} 17. Nc4 {[%emt 0:01:00]} Nb6 18. Nxb6 {[%emt 0:00:00]} Qxb6 {[%emt 0:06:30]} 19. a5 Qc7 20. Bf4 Rad8 {[%emt 0:00:00]} 21. Qa4 {[%emt 0:00:00]} Nd7 {[%emt 0:00:00]} 22. Qc4 {[%emt 0:00:00]} Ne5 {[%emt 0:00:00]} 23. Bxe5 {[%emt 0:00:00]} Bxe5 {[%emt 0:00:00]} 24. b4 {[%emt 0:00:00]} Rc8 {[%emt 0:00:00]} 25. b5 {[%emt 0:00:00]} axb5 {[%emt 0:00:00]} 26. Nxb5 {[%emt 0:00:00]} Qd8 {[%emt 0:00:00]} 27. Ra4 {[%emt 0:00:00]} Ra8 {[%emt 0:00:00]} 28. Qa2 {[%emt 0:00:00]} h5 {[%emt 0:00:00]} 29. Rb1 {[%emt 0:00:00]} Bf6 {[%emt 0:00:00]} 30. a6 {[%emt 0:00:00]} bxa6 {[%emt 0:00:00]} 31. Rxa6 {[%emt 0:00:00]} Be5 {[%emt 0:00:00]} 32. Na7 {[%emt 0:00:00]} Qf6 {[%emt 0:00:00]} 33. Nc6 {[%emt 0:00:00]} Rxa6 {[%emt 0:00:00]} 34. Qxa6 {[%emt 0:00:00]} Bc3 {[%emt 0:00:00]} 35. Qa4 {[%emt 0:03:17]} Kf8 {[%emt 0:00:00]} 36. Rc1 {[%emt 0:03:54]} Bd4 {[%emt 0:00:00]} 37. Nxd4 {[%emt 0:00:48]} cxd4 {[%emt 0:00:00]} 38. Rd1 {[%emt 0:01:35]} Bxe4 {[%emt 0:00:00]} 39. Qxd4 {[%emt 0:00:31]} Qxd4 {[%emt 0:00:00]} 40. Rxd4 {[%emt 0:00:04]} Bf5 {[%emt 0:00:00]} 41. f3 {[%emt 0:01:02]} Kg7 {[%emt 0:00:00]} 42. Kf2 {[%emt 0:00:18]} Rb8 {[%emt 0:00:00]} 43. Rd2 {[%emt 0:00:31]} Kf6 44. f4 {[%emt 0:00:49]} Bb1 {[%emt 0:00:00]} 45. Bf1 {[%emt 0:00:29]} Rb3 {[%emt 0:00:00]} 46. Be2 {[%emt 0:00:29]} Be4 {[%emt 0:00:00]} 47. Rd4 {[%emt 0:00:35]} Kf5 {[%emt 0:00:00]} 48. Rd2 {[%emt 0:00:27]} Ra3 {[%emt 0:00:00]} 49. Rb2 {[%emt 0:00:29]} Bxd5 {[%emt 0:00:00]} 50. Rb5 {[%emt 0:00:03]} Ke4 {[%emt 0:00:00]} 51. Rb4+ {[%emt 0:00:05]} Kf5 {[%emt 0:00:00]} 52. Rb5 {[%emt 0:00:01]} 1/2-1/2